bitfinex/quotes_BTCUSD_20250519
["timestamp","ask_amount","ask_price","bid_price","bid_amount"]
[1747666414432,0.21121323,104160.0,104150.0,0.2112335]
[1747666414658,0.2016128,104160.0,104150.0,0.2112335]
[1747666414919,0.19201228,104160.0,104150.0,0.2112335]
[1747666417668,0.19201228,104160.0,104150.0,0.21123369]
[1747666417900,0.19201228,104160.0,104150.0,0.22083504]
[1747666418340,0.19201228,104160.0,104150.0,0.24003736]
[1747666418557,0.19201228,104160.0,104150.0,0.23043629]
[1747666419541,0.18601228,104160.0,104150.0,0.23043629]
[1747666420631,0.18601228,104160.0,104150.0,0.22083504]
[1747666421641,0.25091228,104160.0,104150.0,0.21123369]
[1747666421822,0.19203072,104150.0,104140.0,0.57937531]
[1747666422029,0.56136957,104150.0,104140.0,0.4086]
[1747666422491,0.65867897,104150.0,104140.0,0.4086]
[1747666423105,0.36384156,104150.0,104140.0,0.60164916]
[1747666423242,0.36384156,104150.0,104140.0,0.60264916]
[1747666423442,0.21123332,104150.0,104140.0,0.61225143]
[1747666423848,0.24223332,104150.0,104140.0,0.61225161]
[1747666424074,0.27503332,104150.0,104140.0,0.20672323]
[1747666424347,0.27503332,104150.0,104140.0,0.21632559]
[1747666424595,0.26543216,104150.0,104140.0,0.21632559]
[1747666424796,0.26543216,104150.0,104140.0,0.20672323]
[1747666424994,0.25583072,104150.0,104140.0,0.00507162]
[1747666425346,0.55066813,104150.0,104140.0,0.00507162]
[1747666426178,0.64797753,104150.0,104140.0,0.00507162]
[1747666426589,0.98797753,104150.0,104140.0,0.00507162]
[1747666427201,0.98797753,104150.0,104140.0,0.00407162]
[1747666427400,0.98197753,104150.0,104140.0,0.00307162]
[1747666427591,1.17961753,104150.0,104140.0,0.00307162]
[1747666427946,0.02880902,104130.0,104120.0,0.21129315]
[1747666428144,0.22087643,104130.0,104120.0,0.23050064]
[1747666428291,0.02880874,104130.0,104120.0,0.23050064]
[1747666428659,0.02880883,104130.0,104120.0,0.26150064]
[1747666429220,0.02880883,104130.0,104120.0,0.26197965]
[1747666429449,0.02880883,104130.0,104120.0,0.26505163]
[1747666429655,0.02880883,104130.0,104120.0,0.23405163]
[1747666429782,0.02880883,104130.0,104120.0,0.26625163]
[1747666430001,0.23047971,104130.0,104120.0,0.21584414]
[1747666430234,0.29368036,104130.0,104120.0,0.22544798]
[1747666430434,0.28407745,104130.0,104120.0,0.21584536]
[1747666430640,0.27447426,104130.0,104120.0,0.21584536]
[1747666430835,0.26487098,104130.0,104120.0,0.00555099]
[1747666431047,0.26487098,104130.0,104120.0,0.20724125]
[1747666431248,0.55010501,104130.0,104120.0,0.20724134]
[1747666431646,0.2552676,104130.0,104120.0,0.22644966]
[1747666431847,0.2552676,104130.0,104120.0,0.23605368]
[1747666432054,0.21127407,104130.0,104120.0,0.23605294]
[1747666432266,0.22087698,104130.0,104120.0,0.2264491]
[1747666432820,0.21127407,104130.0,104120.0,0.2264491]
[1747666433600,0.21127407,104130.0,104120.0,0.21684517]
[1747666433898,0.20167088,104130.0,104120.0,0.20724115]
[1747666434830,0.20167088,104130.0,104120.0,0.21684517]
[1747666435000,0.20167088,104130.0,104120.0,0.20724115]
[1747666435211,0.02880893,104130.0,104120.0,0.22644873]
[1747666435763,0.03841221,104130.0,104120.0,0.22644873]
[1747666435982,0.00960273,104130.0,104120.0,0.25674873]
[1747666436263,0.22085559,104140.0,104130.0,0.23047999]
[1747666436644,0.23045777,104140.0,104130.0,0.23047999]
[1747666437003,0.23045777,104140.0,104130.0,0.23355197]
[1747666437199,0.22085587,104140.0,104130.0,0.23355197]
[1747666437429,0.23045823,104140.0,104130.0,0.24315479]
[1747666437776,0.23045823,104140.0,104130.0,0.23355197]
[1747666440317,0.23045823,104140.0,104130.0,0.24315479]
[1747666440524,0.01920371,104140.0,104130.0,0.27325424]
[1747666440708,0.02880579,104140.0,104130.0,0.27325424]
[1747666441124,0.01920371,104140.0,104130.0,0.27325424]
[1747666441302,0.02880579,104140.0,104130.0,0.30525424]
[1747666441537,0.01920371,104140.0,104130.0,0.30525424]
[1747666441687,0.02880579,104140.0,104130.0,0.30525424]
[1747666442023,0.01920371,104140.0,104130.0,0.30525424]
[1747666442231,0.10691065,104150.0,104140.0,0.22085569]
[1747666442454,0.01920214,104150.0,104140.0,0.2304575]
[1747666442809,0.00960098,104150.0,104140.0,0.2304575]
[1747666443009,0.02880303,104150.0,104140.0,0.2304575]
[1747666443699,0.07270015,104160.0,104150.0,0.22083421]
[1747666443907,0.02880045,104160.0,104150.0,0.22083421]
[1747666444114,0.03840097,104160.0,104150.0,0.22083421]
[1747666444517,0.56894697,104170.0,104160.0,0.20161289]
[1747666444723,0.38101865,104170.0,104160.0,0.20161289]
[1747666444942,0.38101865,104170.0,104160.0,0.21121341]
[1747666445152,0.37141933,104170.0,104160.0,0.20161289]
[1747666445540,0.37141933,104170.0,104160.0,0.20468487]
[1747666445741,0.37141933,104170.0,104160.0,0.20516388]
[1747666447166,0.37141933,104170.0,104160.0,0.2147644]
[1747666447582,0.37141933,104170.0,104160.0,0.23396516]
[1747666447800,0.37141933,104170.0,104160.0,0.2147644]
[1747666447976,0.37141933,104170.0,104160.0,0.22436483]
[1747666448353,0.0287974,104170.0,104160.0,0.23396424]
[1747666449003,0.02889455,104180.0,104170.0,0.23039112]
[1747666449223,0.03849304,104180.0,104170.0,0.23039112]
[1747666449579,0.03849304,104180.0,104170.0,0.2334631]
[1747666449778,0.02889446,104180.0,104170.0,0.2334631]
[1747666449938,0.03849295,104180.0,104170.0,0.2334631]
[1747666450143,0.02889446,104180.0,104170.0,0.2334631]
[1747666450380,0.00969794,104180.0,104170.0,0.2334631]
[1747666450577,0.01929606,104180.0,104170.0,0.2334631]
[1747666451892,0.01929615,104180.0,104170.0,0.2334631]
[1747666452122,0.02889428,104180.0,104170.0,0.2334631]
[1747666452859,0.01929597,104180.0,104170.0,0.2334631]
[1747666453070,0.0001,104180.0,104170.0,0.2655631]
[1747666453267,0.0001,104180.0,104170.0,0.2965631]
[1747666454778,0.0001,104180.0,104170.0,0.6913631]
[1747666454980,0.0001,104180.0,104170.0,0.68813073]
[1747666455184,0.0001,104180.0,104170.0,1.19404013]
[1747666455598,0.32439217,104200.0,104190.0,0.22074943]
[1747666455754,0.34358547,104200.0,104190.0,0.22074943]
[1747666455955,0.3531823,104200.0,104190.0,0.22074943]
[1747666456773,0.60952169,104200.0,104190.0,0.22074961]
[1747666456981,0.60952169,104200.0,104190.0,0.2303469]
[1747666457477,0.39838937,104200.0,104190.0,0.2303469]
[1747666457755,0.3435862,104200.0,104190.0,0.2399441]
[1747666458598,0.34358537,104200.0,104190.0,0.2399441]
[1747666459352,0.3147958,104200.0,104190.0,0.2725441]
[1747666459556,0.33398873,104200.0,104190.0,0.2399441]
[1747666459755,0.32439217,104200.0,104190.0,0.2399441]
[1747666459955,0.32439217,104200.0,104190.0,0.2719441]
[1747666460158,0.33398864,104200.0,104190.0,0.2719441]
[1747666460377,0.33398864,104200.0,104190.0,0.2399441]
[1747666460590,0.34358529,104200.0,104190.0,0.2399441]
[1747666461312,0.34368529,104200.0,104190.0,0.2399441]
[1747666462754,0.33408864,104200.0,104190.0,0.2399441]
[1747666463185,0.33768529,104200.0,104190.0,0.2399441]
[1747666463794,0.32808854,104200.0,104190.0,0.2399441]
[1747666464014,0.2992997,104200.0,104190.0,0.3017441]
[1747666464546,0.31849217,104200.0,104190.0,0.3017441]
[1747666465067,0.32808845,104200.0,104190.0,0.3017441]
[1747666465401,0.3088958,104200.0,104190.0,0.30481418]
[1747666465608,0.2992997,104200.0,104190.0,0.30481418]
[1747666465809,0.2992997,104200.0,104190.0,0.50197418]
[1747666466534,0.2992997,104200.0,104190.0,1.00788358]
[1747666466744,0.2992997,104200.0,104190.0,1.02242443]
[1747666466946,0.2992997,104200.0,104190.0,1.36242443]
[1747666467529,0.2992997,104200.0,104190.0,1.16526443]
[1747666467733,0.2992997,104200.0,104190.0,1.54796645]
[1747666467945,0.2992997,104200.0,104190.0,1.54896645]
[1747666468347,0.31849254,104200.0,104190.0,0.85273705]
[1747666468576,0.31849244,104200.0,104190.0,0.85273705]
[1747666468956,0.32808909,104200.0,104190.0,0.85273705]
[1747666469132,0.32808909,104200.0,104190.0,0.85373705]
[1747666469539,0.31849244,104200.0,104190.0,0.85373705]
[1747666470710,0.30889598,104200.0,104190.0,0.85373705]
[1747666470991,0.30289598,104200.0,104190.0,0.65657705]
[1747666471198,0.30289598,104200.0,104190.0,0.85373705]
[1747666472267,0.31249244,104200.0,104190.0,0.65657705]
[1747666472472,0.33168583,104200.0,104190.0,0.85373705]
[1747666472693,0.322089,104200.0,104190.0,0.85373705]
[1747666473338,0.31249244,104200.0,104190.0,0.85373705]
[1747666473663,0.322089,104200.0,104190.0,0.85373705]
[1747666474264,0.31249235,104200.0,104190.0,0.85373705]
[1747666474403,0.31249235,104200.0,104190.0,0.88573705]
[1747666474818,0.32208881,104200.0,104190.0,0.85768786]
[1747666475550,0.2932997,104200.0,104190.0,1.01889726]
[1747666475761,0.2932997,104200.0,104190.0,1.35889726]
[1747666477479,0.2932997,104200.0,104190.0,1.36652443]
[1747666477690,0.2932997,104200.0,104190.0,1.56348443]
[1747666478944,0.2872997,104200.0,104190.0,1.56348443]
[1747666480880,0.2642787,104200.0,104190.0,1.56348443]
[1747666482740,0.2642787,104200.0,104190.0,1.53241388]
[1747666483475,0.2642787,104200.0,104190.0,1.56120649]
[1747666483648,0.2642787,104200.0,104190.0,1.15260649]
[1747666483826,0.2642787,104200.0,104190.0,1.56120649]
[1747666485740,0.2642787,104200.0,104190.0,1.56112649]
[1747666486262,0.2642787,104200.0,104190.0,1.34966564]
[1747666486481,0.2582787,104200.0,104190.0,1.54654564]
[1747666488323,0.3226787,104200.0,104190.0,1.38533624]
[1747666488451,0.3226787,104200.0,104190.0,0.99133624]
[1747666488656,0.2910787,104200.0,104190.0,1.38533624]
[1747666488858,0.2582787,104200.0,104190.0,1.38533624]
[1747666490147,0.2582787,104200.0,104190.0,1.51434564]
[1747666490354,0.2582787,104200.0,104190.0,1.54484564]
[1747666491222,0.3222787,104200.0,104190.0,0.20662483]
[1747666491462,0.33187489,104200.0,104190.0,0.21622231]
[1747666491675,0.3222787,104200.0,104190.0,0.22581951]
[1747666492112,0.34147154,104200.0,104190.0,0.22581951]
[1747666492292,0.35106828,104200.0,104190.0,0.22581951]
[1747666492470,0.34147154,104200.0,104190.0,0.22581951]
[1747666492666,0.35106828,104200.0,104190.0,0.22581951]
[1747666492872,0.30947154,104200.0,104190.0,0.22074943]
[1747666493074,0.31906828,104200.0,104190.0,0.22074943]
[1747666493282,0.35236828,104200.0,104190.0,0.41786943]
[1747666493521,0.34277154,104200.0,104190.0,0.41786943]
[1747666493706,0.36196493,104200.0,104190.0,0.41786943]
[1747666494014,0.36196493,104200.0,104190.0,0.42183804]
[1747666494226,0.33677154,104200.0,104190.0,0.42183804]
[1747666494380,0.31306828,104200.0,104190.0,0.61831804]
[1747666494570,0.281068,104200.0,104190.0,0.61831804]
[1747666494986,0.2522787,104200.0,104190.0,0.61831804]
[1747666495359,0.2522787,104200.0,104190.0,0.77902744]
[1747666495561,0.2522787,104200.0,104190.0,1.13356829]
[1747666496777,0.2522787,104200.0,104190.0,1.12959968]
[1747666497235,0.2522787,104200.0,104190.0,1.14459968]
[1747666497434,0.2522787,104200.0,104190.0,1.53815968]
[1747666498230,0.2292608,104200.0,104190.0,1.53815968]
[1747666498663,0.0158356,104210.0,104200.0,0.28432824]
[1747666498809,0.0158356,104210.0,104200.0,0.38163764]
[1747666499900,0.01597927,104210.0,104200.0,0.38163764]
[1747666500974,0.23296,104250.0,104240.0,0.20145798]
[1747666501155,0.0316625,104250.0,104240.0,0.20145798]
[1747666501359,0.24269302,104250.0,104240.0,0.20145807]
[1747666501498,0.24269302,104250.0,104240.0,0.21105094]
[1747666501705,0.06043873,104250.0,104240.0,0.23023641]
[1747666501915,0.26187757,104250.0,104240.0,0.23023641]
[1747666502138,0.07103105,104250.0,104240.0,0.23982901]
[1747666502541,0.04225436,104250.0,104240.0,0.23982901]
[1747666502758,0.04225418,104250.0,104240.0,0.23982901]
[1747666502956,0.04225409,104250.0,104240.0,0.23982901]
[1747666503362,0.042254,104250.0,104240.0,0.23982901]
[1747666503969,0.02207073,104250.0,104240.0,0.39873841]
[1747666504170,0.02307073,104250.0,104240.0,1.22409244]
[1747666504881,0.02307073,104250.0,104240.0,1.30409244]
[1747666505091,0.02307073,104250.0,104240.0,1.30405244]
[1747666505295,0.02207073,104250.0,104240.0,1.30712004]
[1747666505457,0.02307073,104250.0,104240.0,1.30712004]
[1747666505659,0.02307073,104250.0,104240.0,1.25909588]
[1747666506122,0.02307073,104250.0,104240.0,1.26009588]
[1747666506320,0.02307073,104250.0,104240.0,1.25909588]
[1747666506537,0.02307073,104250.0,104240.0,0.86569588]
[1747666506683,0.05184659,104250.0,104240.0,0.20972602]
[1747666506886,0.29000143,104250.0,104240.0,0.0870676]
[1747666507289,0.58483884,104250.0,104240.0,0.09103421]
[1747666507606,0.70428143,104250.0,104240.0,0.09103421]
[1747666507857,0.70428143,104250.0,104240.0,0.01003421]
[1747666508198,0.70428143,104250.0,104240.0,0.01203421]
[1747666508406,0.70428143,104250.0,104240.0,0.00803421]
[1747666508607,0.70428143,104250.0,104240.0,0.00496661]
[1747666508807,0.70528143,104250.0,104240.0,0.00496661]
[1747666509014,0.70528143,104250.0,104240.0,0.00296661]
[1747666509233,0.50384268,104250.0,104240.0,0.19483153]
[1747666509444,1.10815311,104250.0,104240.0,0.20442477]
[1747666509749,1.09856143,104250.0,104240.0,0.19483153]
[1747666509948,1.38380689,104250.0,104240.0,0.00296661]
[1747666510150,0.99052689,104250.0,104240.0,0.00296661]
[1747666510505,0.01717073,104250.0,104240.0,0.32035118]
[1747666510683,0.21389073,104250.0,104240.0,0.31795294]
[1747666511634,0.21389073,104250.0,104240.0,0.32102117]
[1747666511837,0.04594641,104250.0,104240.0,0.30371177]
[1747666512055,0.02676241,104250.0,104240.0,0.30371177]
[1747666512272,0.22348241,104250.0,104240.0,0.30371177]
[1747666512785,0.22348222,104250.0,104240.0,0.30371177]
[1747666512972,0.2330739,104250.0,104240.0,0.30371177]
[1747666513411,0.24266567,104250.0,104240.0,0.30371177]
[1747666513615,0.2330739,104250.0,104240.0,0.30371177]
[1747666513965,0.27506585,104250.0,104240.0,0.30371177]
[1747666514155,0.2957739,104250.0,104240.0,0.30371177]
[1747666514361,0.50680442,104250.0,104240.0,0.2845263]
[1747666514570,0.22707473,104250.0,104240.0,0.29411917]
[1747666514771,0.06275473,104250.0,104240.0,0.30371196]
[1747666514990,0.46091348,104250.0,104240.0,0.29411927]
[1747666515195,0.5037058,104250.0,104240.0,0.30371196]
[1747666515775,0.31185928,104250.0,104240.0,0.30371196]
[1747666515981,0.31185928,104250.0,104240.0,0.31330456]
[1747666515982,0.03994623,104250.0,104240.0,0.31330456]
[1747666516186,0.01117073,104250.0,104240.0,0.31330456]
[1747666516950,0.0303539,104250.0,104240.0,0.71231196]
[1747666517154,0.07983781,104250.0,104240.0,0.72190456]
[1747666517358,0.07024576,104250.0,104240.0,0.72290456]
[1747666517512,0.07983771,104250.0,104240.0,0.72290456]
[1747666517712,0.0606539,104250.0,104240.0,0.72290456]
[1747666517970,0.07024585,104250.0,104240.0,0.72290456]
[1747666518173,0.0606539,104250.0,104240.0,0.72390456]
[1747666518387,0.07024576,104250.0,104240.0,0.72390456]
[1747666519212,0.01017073,104250.0,104240.0,0.72390456]
[1747666521130,0.01017073,104250.0,104240.0,0.72687117]
[1747666522232,0.00417073,104250.0,104240.0,0.72687117]
[1747666522434,0.00417073,104250.0,104240.0,0.31827117]
[1747666522654,0.01376241,104250.0,104240.0,0.31827117]
[1747666522861,0.00417073,104250.0,104240.0,0.23827117]
[1747666523356,0.01376232,104250.0,104240.0,0.23827117]
[1747666523570,0.00417073,104250.0,104240.0,0.23827117]
[1747666523883,0.01376232,104250.0,104240.0,0.23827117]
[1747666524054,0.00417073,104250.0,104240.0,0.23827117]
[1747666524463,0.01376232,104250.0,104240.0,0.23827117]
[1747666524849,0.02335418,104250.0,104240.0,0.23827117]
[1747666525668,0.01376232,104250.0,104240.0,0.23827117]
[1747666526088,0.02335409,104250.0,104240.0,0.23827117]
[1747666526388,0.57263866,104250.0,104240.0,0.19989976]
[1747666526582,0.57263866,104250.0,104240.0,0.21908578]
[1747666526583,0.27780125,104250.0,104240.0,0.21908578]
[1747666526812,0.27780125,104250.0,104240.0,0.21908588]
[1747666528166,0.08595473,104250.0,104240.0,0.21908588]
[1747666528402,0.08595473,104250.0,104240.0,0.23827135]
[1747666528595,0.05405473,104250.0,104240.0,0.23827135]
[1747666528746,0.01376232,104250.0,104240.0,0.23827135]
[1747666528944,0.02335418,104250.0,104240.0,0.23827135]
[1747666529191,0.01376241,104250.0,104240.0,0.23827135]
[1747666529927,0.00417073,104250.0,104240.0,0.23827135]
[1747666530052,0.48776422,104260.0,104250.0,0.22062266]
[1747666530452,0.47817346,104260.0,104250.0,0.21103089]
[1747666530654,0.47817346,104260.0,104250.0,0.22062284]
[1747666531041,0.47817346,104260.0,104250.0,0.2302147]
[1747666531249,0.21102997,104250.0,104240.0,0.19789976]
[1747666531449,0.24282997,104250.0,104240.0,0.01255985]
[1747666531651,0.23323838,104250.0,104240.0,0.21401792]
[1747666531852,0.22364652,104250.0,104240.0,0.21401792]
[1747666532282,0.51848393,104250.0,104240.0,0.00603523]
[1747666532487,0.61579333,104250.0,104240.0,0.00603523]
[1747666532658,0.61579333,104250.0,104240.0,0.00703523]
[1747666533066,0.64819333,104250.0,104240.0,0.00703523]
[1747666533670,0.64819333,104250.0,104240.0,0.00803523]
[1747666534082,0.64819333,104250.0,104240.0,0.00703523]
[1747666534280,0.64819333,104250.0,104240.0,0.00603523]
[1747666534598,0.64929333,104250.0,104240.0,0.00603523]
[1747666534773,0.64929333,104250.0,104240.0,0.00306862]
[1747666535756,0.64829333,104250.0,104240.0,0.00306862]
[1747666536122,0.65029333,104250.0,104240.0,0.00306862]
[1747666536298,0.99029333,104250.0,104240.0,0.00306862]
[1747666536716,1.21553433,104250.0,104240.0,0.00306862]
[1747666536916,0.27447138,104230.0,104220.0,0.00296661]
[1747666537123,0.66727138,104230.0,104220.0,0.0031102]
[1747666537325,0.66727138,104230.0,104220.0,0.19501194]
[1747666537529,0.66727138,104230.0,104220.0,0.0031102]
[1747666537728,0.65767722,104230.0,104220.0,0.19501194]
[1747666538135,0.56930879,104230.0,104220.0,0.00617945]
[1747666538327,0.66727138,104230.0,104220.0,0.20867627]
[1747666538633,0.66727138,104230.0,104220.0,0.21827126]
[1747666539035,0.00959361,104230.0,104220.0,0.23745977]
[1747666539200,0.23481462,104230.0,104220.0,0.23945977]
[1747666539856,0.43629211,104230.0,104220.0,0.22986552]
[1747666540057,0.23481462,104230.0,104220.0,0.23945996]
[1747666540207,0.43629202,104230.0,104220.0,0.23945996]
[1747666540607,0.43629285,104230.0,104220.0,0.23945996]
[1747666541090,0.26393875,104250.0,104240.0,0.20145816]
[1747666541294,0.00969149,104250.0,104240.0,0.2302366]
[1747666541529,0.0001,104250.0,104240.0,0.2938366]
[1747666542067,0.0001,104250.0,104240.0,0.391146]
[1747666542267,0.0001,104250.0,104240.0,0.75567906]
[1747666542482,0.0011,104250.0,104240.0,0.75567906]
[1747666542622,0.0011,104250.0,104240.0,0.83567906]
[1747666543036,0.0001,104250.0,104240.0,1.2549342]
[1747666543268,0.0001,104260.0,104250.0,0.63796323]
[1747666543520,0.0001,104260.0,104250.0,0.73527263]
[1747666544966,0.0001,104260.0,104250.0,0.73834188]
[1747666545384,0.02965582,104290.0,104250.0,0.70956602]
[1747666545554,0.02965582,104290.0,104280.0,0.22055891]
[1747666545762,0.02965582,104290.0,104280.0,0.25245891]
[1747666545967,0.02965582,104290.0,104280.0,0.34976831]
[1747666546375,0.02965582,104290.0,104280.0,0.38096831]
[1747666546571,0.02965582,104290.0,104280.0,0.57736831]
[1747666546819,0.03013435,104290.0,104280.0,0.58129127]
[1747666546962,0.03013435,104290.0,104280.0,0.58730209]
[1747666547381,0.03013435,104290.0,104280.0,0.60184294]
[1747666547382,0.00047853,104290.0,104280.0,0.60184294]
[1747666547620,0.00047853,104290.0,104280.0,0.60284294]
[1747666547796,0.00047853,104290.0,104280.0,0.68284294]
[1747666548465,0.00047853,104290.0,104280.0,0.69719891]
[1747666549442,0.00047853,104290.0,104280.0,0.72264986]
[1747666549664,0.00047853,104290.0,104280.0,0.71970829]
[1747666553309,0.0456273,104300.0,104290.0,0.04972851]
[1747666553310,0.03860583,104300.0,104290.0,0.04972851]
[1747666553535,0.03874933,104300.0,104290.0,0.34120763]
[1747666553659,0.03874933,104300.0,104290.0,0.3514681]
[1747666554266,0.03874933,104300.0,104290.0,0.39760895]
[1747666555628,0.03108363,104300.0,104290.0,0.73760895]
[1747666556248,0.03108363,104300.0,104290.0,1.83990895]
[1747666556550,0.03108363,104300.0,104290.0,1.84290895]
[1747666557186,0.03108363,104300.0,104290.0,1.15120895]
[1747666557589,0.03108363,104300.0,104290.0,1.54344895]
[1747666558172,0.03108363,104300.0,104290.0,1.54638935]
[1747666558953,0.03108363,104300.0,104290.0,1.84584935]
[1747666559075,0.03108363,104300.0,104290.0,2.04196935]
[1747666560783,0.02508363,104300.0,104290.0,2.04196935]
[1747666561191,0.01741915,104300.0,104290.0,2.04196935]
[1747666562053,0.00975467,104300.0,104290.0,2.04196935]
[1747666562500,0.002,104310.0,104300.0,0.29715747]
[1747666562728,0.002,104310.0,104300.0,0.73446687]
[1747666562910,0.0158356,104320.0,104310.0,0.28339548]
[1747666563144,0.0158356,104320.0,104310.0,0.38070488]
[1747666563296,0.0158356,104320.0,104310.0,0.91674488]
[1747666563472,0.0158356,104320.0,104310.0,1.11282488]
[1747666563875,0.0158356,104320.0,104310.0,0.85695413]
[1747666564083,0.0158356,104320.0,104310.0,0.86087709]
[1747666564530,0.0158356,104320.0,104310.0,0.86187709]
[1747666564755,0.0158356,104320.0,104310.0,0.32579709]
[1747666565364,0.0158356,104320.0,104310.0,0.55237709]
[1747666565497,0.0158356,104320.0,104310.0,0.59791794]
[1747666566269,0.0158356,104320.0,104310.0,0.59891794]
[1747666567045,0.0158356,104320.0,104310.0,0.93891794]
[1747666567847,0.0158356,104320.0,104310.0,1.34751794]
[1747666568708,0.0098356,104320.0,104310.0,1.34751794]
[1747666569689,0.0098356,104320.0,104310.0,1.37883681]
[1747666570074,0.0098356,104320.0,104310.0,1.40627359]
[1747666570421,0.0098356,104320.0,104310.0,1.37495472]
[1747666571267,0.0098356,104320.0,104310.0,1.34751794]
[1747666571665,0.0098356,104320.0,104310.0,1.37495472]
[1747666571907,0.0098356,104320.0,104310.0,1.34751794]
[1747666572113,0.0098356,104320.0,104310.0,1.34651794]
[1747666572283,0.0098356,104320.0,104310.0,1.37395472]
[1747666572496,0.0098356,104320.0,104310.0,1.34851794]
[1747666572696,0.0098356,104320.0,104310.0,1.34751794]
[1747666572878,0.0098356,104320.0,104310.0,1.37295472]
[1747666573292,0.0098356,104320.0,104310.0,1.34951794]
[1747666573499,0.0098356,104320.0,104310.0,1.38083681]
[1747666573717,0.0098356,104320.0,104310.0,1.35351794]
[1747666574121,0.0098356,104320.0,104310.0,2.04521794]
[1747666574834,0.04006972,104330.0,104320.0,0.29841519]
[1747666575174,0.00558279,104330.0,104320.0,2.03194459]
[1747666575379,0.00558279,104330.0,104320.0,2.03501384]
[1747666575973,0.00558279,104330.0,104320.0,2.23105384]
[1747666576171,0.00558279,104330.0,104320.0,1.84309384]
[1747666576420,0.06161729,104340.0,104330.0,0.2204532]
[1747666576622,0.06161729,104340.0,104330.0,0.3177626]
[1747666576774,0.06161729,104340.0,104330.0,0.32083185]
[1747666577576,0.06161729,104340.0,104330.0,0.32073185]
[1747666577783,0.06161729,104340.0,104330.0,0.32173185]
[1747666577981,0.62820338,104340.0,104330.0,0.00406925]
[1747666578185,0.82408338,104340.0,104330.0,0.00406925]
[1747666578413,0.82408338,104340.0,104330.0,0.00900434]
[1747666578572,0.92139278,104340.0,104330.0,0.00900434]
[1747666579020,0.52924597,104340.0,104330.0,0.00900434]
[1747666579196,0.82418338,104340.0,104330.0,0.00900434]
[1747666579406,0.82418338,104340.0,104330.0,0.00800434]
[1747666579708,0.52934597,104340.0,104330.0,0.00700434]
[1747666581233,0.72561278,104340.0,104330.0,0.00700434]
[1747666581389,1.11753278,104340.0,104330.0,0.00700434]
[1747666581592,1.11753278,104340.0,104330.0,0.00602209]
[1747666581789,0.52950597,104340.0,104330.0,0.00602209]
[1747666582034,0.72538597,104340.0,104330.0,0.00602209]
[1747666582437,1.11753278,104340.0,104330.0,0.00602209]
[1747666582848,1.21484218,104340.0,104330.0,0.00602209]
[1747666583003,1.11753278,104340.0,104330.0,0.00602209]
[1747666583407,1.45753278,104340.0,104330.0,0.00602209]
[1747666584073,7.07321078,104340.0,104330.0,0.00602209]
[1747666584251,0.5594216,104330.0,104320.0,0.00441362]
[1747666584443,5.854489,104330.0,104320.0,0.00441362]
[1747666584706,0.21090913,104310.0,104300.0,0.00593509]
[1747666585002,1.05407594,104310.0,104300.0,0.0064141]
[1747666585409,1.09923853,104310.0,104300.0,0.0064141]
[1747666585608,1.05387594,104310.0,104300.0,0.0064141]
[1747666585850,0.75903853,104310.0,104300.0,0.0064141]
[1747666586036,1.05387594,104310.0,104300.0,0.0064141]
[1747666586555,1.05487594,104310.0,104300.0,0.0064141]
[1747666586941,0.66315594,104310.0,104300.0,0.0064141]
[1747666587132,0.76003853,104310.0,104300.0,0.0064141]
[1747666587298,0.27200913,104310.0,104300.0,0.0064141]
[1747666587500,0.66376913,104310.0,104300.0,0.19423356]
[1747666587711,0.27615296,104310.0,104300.0,0.21340855]
[1747666587935,0.46788913,104310.0,104300.0,0.21340855]
[1747666588137,0.46788913,104310.0,104300.0,0.20382119]
[1747666588332,0.04448607,104310.0,104300.0,0.21340864]
[1747666588603,0.0021,104310.0,104300.0,0.23258308]
[1747666589223,0.0021,104310.0,104300.0,0.36079248]
[1747666589402,0.0021,104310.0,104300.0,0.32989248]
[1747666589611,0.00195502,104310.0,104300.0,0.32989248]
[1747666590440,0.00195502,104310.0,104300.0,0.23258308]
[1747666590791,0.00195502,104310.0,104300.0,0.32989248]
[1747666591166,0.0011,104310.0,104300.0,0.36229248]
[1747666591492,0.0021,104310.0,104300.0,0.36229248]
[1747666591997,0.01527048,104320.0,104310.0,0.22049548]
[1747666592587,0.01527039,104320.0,104310.0,0.22049548]
[1747666593120,0.19295379,104330.0,104320.0,0.22047461]
[1747666593294,0.3536532,104330.0,104320.0,0.2204748]
[1747666593655,0.3858532,104330.0,104320.0,0.21088928]
[1747666593843,0.36668428,104330.0,104320.0,0.21088946]
[1747666594061,0.00958607,104310.0,104300.0,0.21340836]
[1747666594273,0.01917223,104310.0,104300.0,0.22299544]
[1747666594514,0.01917223,104310.0,104300.0,0.19423356]
[1747666594515,0.28499548,104310.0,104300.0,0.19423356]
[1747666594721,0.28499548,104310.0,104300.0,0.22299609]
[1747666594895,0.27540968,104310.0,104300.0,0.19423356]
[1747666595073,0.27540968,104310.0,104300.0,0.21340891]
[1747666595279,0.27540968,104310.0,104300.0,0.22299636]
[1747666595503,0.27540968,104310.0,104300.0,0.24217098]
[1747666595704,0.27540968,104310.0,104300.0,0.22299636]
[1747666595902,0.27540968,104310.0,104300.0,0.23258372]
[1747666596106,0.27540968,104310.0,104300.0,0.21340891]
[1747666596314,0.27540968,104310.0,104300.0,0.00247901]
[1747666596315,0.56066038,104310.0,104300.0,0.00247901]
[1747666596718,0.65796978,104310.0,104300.0,0.00247901]
[1747666596925,0.85380978,104310.0,104300.0,0.00554595]
[1747666598447,0.55897237,104310.0,104300.0,0.00554595]
[1747666598666,0.85380978,104310.0,104300.0,0.00554595]
[1747666598867,0.85380978,104310.0,104300.0,0.00247901]
[1747666599197,1.19380978,104310.0,104300.0,0.00247901]
[1747666599397,0.85380978,104310.0,104300.0,0.00247901]
[1747666599542,0.36313237,104310.0,104300.0,0.00247901]
[1747666599741,0.75489237,104310.0,104300.0,0.00247901]
[1747666600096,1.04972978,104310.0,104300.0,0.00247901]
[1747666600723,1.05172978,104310.0,104300.0,0.00247901]
[1747666601436,1.04972978,104310.0,104300.0,0.00247901]
[1747666601784,1.05072978,104310.0,104300.0,0.00247901]
[1747666604307,1.05068978,104310.0,104300.0,0.00247901]
[1747666604502,0.85484978,104310.0,104300.0,0.00247901]
[1747666604705,0.55401237,104310.0,104300.0,0.19423356]
[1747666604979,0.74985237,104310.0,104300.0,0.00247901]
[1747666605184,0.74989237,104310.0,104300.0,0.00247901]
[1747666605399,1.04472978,104310.0,104300.0,0.00247901]
[1747666605593,0.74989237,104310.0,104300.0,0.00247901]
[1747666605795,1.04472978,104310.0,104300.0,0.00247901]
[1747666606027,0.65296978,104310.0,104300.0,0.00247901]
[1747666606231,1.04472978,104310.0,104300.0,0.00247901]
[1747666607826,1.14203918,104310.0,104300.0,0.00247901]
[1747666608486,1.04472978,104310.0,104300.0,0.00247901]
[1747666609652,0.23012585,104290.0,104270.0,0.2410513]
[1747666609975,0.23012585,104290.0,104280.0,0.21094105]
[1747666610811,0.23012585,104290.0,104280.0,0.21094133]
[1747666611035,0.50578736,104290.0,104280.0,0.19176257]
[1747666611210,0.52809899,104290.0,104280.0,0.00306737]
[1747666611426,0.52809899,104290.0,104280.0,0.1948587]
[1747666611612,0.26626158,104290.0,104280.0,0.00306737]
[1747666611857,0.26626158,104290.0,104280.0,0.1948587]
[1747666612058,0.20136158,104290.0,104280.0,0.21403755]